Workbook

Sheet Readme
B1: Legenda Multivariate model
A2: Analyse RD (worksheet) | B2: AnalyseRD, check connectivty in Game File, e.g. GF must constitute one Strongly Connected Component
A4: Ctrl k | B4: Clear PrN when cell F2 is blank. Copy BRtg to PrN when all cells in BRtg are nonblank and numeric.
B5: Iterate until difference below tolerance limit or max number of iterations. Results in PrN
A6: Tools>Options>Calculation | B6: Restore calculation to automatic after Esc
A8: Alt F11 | B8: Visual Basic
A9: Alt F8 | B9: Visual Basic
A10: Esc | B10: Interrupt iteration
A12: Rank | B12: Rank, ignore player when rank = "x"
A13: BRtg | B13: Begin Rating (=Opponent rating, when dependent)
A14: Player | B14: Player name
A15: D2 | B15: Maximum number of CG-iterations (at least one iteration)
A16: E2 | B16: Maximum number of NR-iterations (at least one iteration)
A17: F2 | B17: Reset: blank = init, s = save file, x = continue
A19: PrN | B19: Performance Ratings New
A21: Game file | B21: Results,<player><Colour><result> + blank line below + right (=excel current region)
B22: Alternative format is a cross table (player x player)
A23: Diff(-2) | B23: Tolerance NR-iteration
A24: r(-2) | B24: EpsCG, Tolerance CG-iteration
A25: b(-2) | B25: Model precision (W, We, b) ~ 0,5 / (alpha0 * N * xscale), Alpha0 = 1 / (E'(0) * r)
A26: N(-4) | B26: Win character game file
A27: N(-3) | B27: Draw Character
A28: N(-2) | B28: Lost Character
A30: Parms(-1) | B30: Slope Expectation at x = 0 (dE0)
A31: Parms
A32: Options | B32: D = Compute dependent PR, Pr opponents = BRtg; Prec = precondioned Conjugate Gradient
A33: Iteration method | B33: Zermelo (Update = ln(W / We) * Xscale
B34: Standard (Tangent at x = 0)
B35: Diagonal Descent (J is simplified to diagonal of J)
B36: Conjugate Gradient (respects average PR)
B37: Conjugate Gradient - Steepest Descent (respects average PR), Set Beta = 0
B38: Output is not renormalized at a given average (is considerd to be part of the presentation logic)
A39: Expectation functions | B39: Logistic
B40: Gauss
B41: Lorenz / Cauchy
B42: SecH (Hyperbolic Secant)
B43: Lineair (AVG400, Sonas)
B44: SinH (Sinus Hyperbolicus), Unbounded with increasing slope
B45: TanH (Tangens hyperbolicus), Unbounded with decreasing slope
B46: Test (E=C), pathalogical functions
A47: Xscale | B47: s (Logistic), Sigma (Gauss)
A48: EslopeMin | B48: Minimum slope expectation function (less freedom, more stable, slower)
A50: VBA >>>> Worksheet
A51: BRtg(-1) | B51: Step counter CG-iterations
A52: BRtg(-2) | B52: Cumulative counter CG-iterations
A53: BRtg(-3) | B53: Counter main iterations
A54: BRtg(-4) | B54: Time elapsed
A55: Prn(-1) | B55: Number of players (includes players with no games))
A56: Diff(-3) | B56: Estimated error ||Pr* - Pr(n)||
A57: Diff(-4) | B57: ||Diff|| current iteration
A58: Diff(-5) | B58: ||Diff|| previous iteration
A59: Jii(-1) | B59: Minimum Jii. Jii = Diagonal Jacobian
A60: Jii(-2) | B60: Condition number kappa: Maximum eigenvalue / Minimum eigenvalue ~ Maximum Jii / Minimum Jii
A61: Jii(-3) | B61: w = (k-1)/(k+1), convergence rate CG theoretical = w*w
A62: b(-3) | B62: ||b.b|| = sqrt(sumproduct(b, b))
A64: N | B64: Number of games
A65: W | B65: Actual score
A66: Jii | B66: Diagonal Jacobian
A67: Minv | B67: Inverse of precondion matrix M = Diag(J)
A68: We | B68: Expected score
A69: b | B69: -(We - W)
A70: x | B70: Normalized Update, mean = 0
A71: Diff | B71: x * Xscale
A73: Uitleg | B73: http://www.damclubijmuiden.nl/OnderlingeComp/performance-rating/index-performance-rating.html
A74: Keywords | B74: Newton-Raphson, Krylov subspace, Gradient Descend, Conjugate Gradient, positive-definite, Jacobian
A75: Reference | B75: An Introduction to the Conjugate Gradient Method Without the Agonizing Pain Edition 1/4 (J.R. Shewchuk)
A77: E=Lineair + EpsCG=0 + rondtoernooi | B77: Aantal iteraties = 1 + 1
A78: E=Lineair + EpsCG=0 | B78: Aantal hoofditeraties = 1
A80: Gamefile | B80: Score results, two formats supported: Cross table, Gamefile

Sheet Model-MV
B2: Solve (in)dependent | D2: 75 | E2: 10 | G2: ="Ctrl k: Max Sub="&D2&", Main="&E2&" iteraties" -> Ctrl k: Max Sub=75, Main=10 iteraties | L2: E= | M2: Logistic | N2: Gauss | O2: Lineair | P2: Lorenz | Q2: Sech | R2: Lineair | S2: Sinh | T2: Tanh | U2: Test | V2: <<< Copy paste values to Parms
B3: Performance Rating | D3: =0.5*SQRT(O11)*LN(2/J11) -> 0 | E3: =2*LN(D12) -> 8.634976227 | G3: Esc = Interrupt, F9 = Calc | L3: X-scale= | M3: =400/LN(10) -> 173.7177928 | N3: =2000/7 -> 285.7142857 | O3: =850/4 -> 212.5 | P3: 255 | Q3: 400 | R3: 200 | S3: 800 | T3: 800 | U3: 100
B4: Result in PrN
E5: =CtrMain -> 0 | G5: =SUM(x) -> 0 | I5: ∑ r = | J5: =SUM(_r) -> 0 | L5: =SUM(b) -> 0
A6: Avg= | B6: =SUMPRODUCT(PrN,(N>0)*1)/MAX(SUMPRODUCT((N>0)*1),1) -> 0 | D6: =SUMPRODUCT(PrN,(N>0)*1)/MAX(SUMPRODUCT((N>0)*1),1)-B6 -> 0 | E6: =B11 -> 0 | I6: d.J.d = | M6: 0.25
E7: =B12 -> 0 | I7: δ0 = | M7: Parms
E8: 0 | I8: α (δnew/dJd) = | M8: * | O8: =Options
A9: t= | B9: 0 | E9: 0 | I9: β (δ/δnew) = | L9: || b || | M9: CG | O9: =Method | Q9: ="1" -> 1
A10: NR= | B10: 0 | E10: 2 | I10: ||δ/δ0|| = | M10: Logistic | P10: =w | Q10: ½ | R10: =SUM(N)/MAX(COUNTIF(N,">0"),1) -> 0
A11: CgC= | B11: 0 | E11: 1 | I11: Eps = | J11: =EXP(-2) -> 0.1353352832 | L11: 1e-06 | M11: 173.7177928 | P11: =kappa | Q11: 0
A12: CgS= | B12: 0 | D12: 75 | E12: x.s | G12: x + α.d | H12: J.d | I12: r + β.d | J12: b - J.x | L12: -(We - W) | M12: 0 | P12: =Min Jii | Q12: # Games | R12: Game file
A13: Rank | B13: BRtg | C13: Player | D13: PrN | E13: Diff | G13: x | H13: q | I13: d | J13: r | L13: b | M13: We | N13: Minv | O13: Jii | P13: W | Q13: N | R13: Rd.1 | S13: Rd.2 | T13: Rd.3 | U13: Rd.4 | V13: Rd.5 | W13: Rd.6 | X13: Rd.7 | Y13: Rd.8
R14: 52w1 | S14: 11z1 | T14: 16w1 | U14: 8z1 | V14: 2w½ | W14: 7z1 | X14: 30w1 | Y14: 9w1
R15: 25w1 | S15: aclad | T15: 14z1 | U15: 4w1 | V15: 1z½ | W15: 20w1 | X15: 3z½ | Y15: 7w0
R16: 29w1 | S16: 14z½ | T16: 18w1 | U16: 10z1 | V16: aclub | W16: afwmm | X16: 2w½ | Y16: 30z½
R17: 47z1 | S17: aclad | T17: 33w1 | U17: 2z0 | V17: aclub | W17: 5z1 | X17: afwmm | Y17: afwmm
R18: 13z1 | S18: 30w1 | T18: 37z½ | U18: 7w0 | V18: 22z1 | W18: 4w0 | X18: 10z0 | Y18: 18w1
R19: 8w0 | S19: 54z1 | T19: 48w1 | U19: 21z1 | V19: 12w1 | W19: 30w0 | X19: 27z½ | Y19: 23z1
R20: 18z½ | S20: 9w1 | T20: 17w1 | U20: 5z1 | V20: afwmm | W20: 1w0 | X20: 32z1 | Y20: 2z1
R21: 6z1 | S21: 12w½ | T21: 31z1 | U21: 1w0 | V21: 37z0 | W21: 27z0 | X21: afwmm | Y21: 54w1
R22: bye | S22: 7z0 | T22: 61z1 | U22: 28w1 | V22: 11z1 | W22: 37w1 | X22: 34w1 | Y22: 1z0
R23: 36z½ | S23: 46w1 | T23: 43z1 | U23: 3w0 | V23: aclub | W23: 23z½ | X23: 5w1 | Y23: 20z1
R24: 23w1 | S24: 1w0 | T24: 28z½ | U24: 18z1 | V24: 9w0 | W24: 26w1 | X24: 38z1 | Y24: afwmm
R25: 32w1 | S25: 8z½ | T25: 72w1 | U25: afwmm | V25: 6z0 | W25: 53w½ | X25: 21w½ | Y25: 36z1
R26: 5w0 | S26: afwmm | T26: 65z1 | U26: afwmm | V26: aclad | W26: afwmm | X26: 56z1 | Y26: 24w1
R27: 68z1 | S27: 3w½ | T27: 2w0 | U27: 43z1 | V27: aclub | W27: 32w½ | X27: afwmm | Y27: 72z1
R28: 17z0 | S28: 43w½ | T28: 46z0 | U28: 26z0 | V28: 61w1 | W28: aclub | X28: 42z1 | Y28: 40w½
R29: 42w1 | S29: 25z1 | T29: 1z0 | U29: 24w½ | V29: 34w0 | W29: aclub | X29: afwmm | Y29: 71z½
R30: 15w1 | S30: aclad | T30: 7z0 | U30: afwmm | V30: aclub | W30: afwmm | X30: 73w1 | Y30: afwmm
R31: 7w½ | S31: 74z1 | T31: 3z0 | U31: 11w0 | V31: afwmm | W31: 40w1 | X31: 62z1 | Y31: 5z0
R32: 46z½ | S32: 21w0 | T32: 36z0 | U32: 66w1 | V32: 45z1 | W32: aclub | X32: 29w0 | Y32: 25z1
R33: afwmm | S33: afwmm | T33: afwmm | U33: 39z1 | V33: 71w1 | W33: 2z0 | X33: 37w1 | Y33: 10w0
R34: 74w½ | S34: 19z1 | T34: afwmm | U34: 6w0 | V34: 51z1 | W34: 31w1 | X34: 12z½ | Y34: afwmm
R35: afwzm | S35: 55z1 | T35: 66z1 | U35: 38w1 | V35: 5w0 | W35: 29z½ | X35: 36w0 | Y35: 52z0
R36: 11z0 | S36: 39w1 | T36: 73z1 | U36: afwmm | V36: 27w½ | W36: 10w½ | X36: 71z1 | Y36: 6w0
R37: 73z0 | S37: 70w1 | T37: 44z1 | U37: 16z½ | V37: 47w½ | W37: aclub | X37: afwmm | Y37: 13z0
R38: 2z0 | S38: 16w0 | T38: 70z1 | U38: 29w0 | V38: aclub | W38: 66z1 | X38: 46w½ | Y38: 19w0
R39: gnlid | S39: gnlid | T39: 34z0 | U39: 15w1 | V39: 43w1 | W39: 11z0 | X39: afwmm | Y39: 31z1
R40: 30z0 | S40: 73w1 | T40: 41z1 | U40: afwmm | V40: 23z½ | W40: 8w1 | X40: 6w½ | Y40: 35z0
R41: 69z1 | S41: 67w0 | T41: 11w½ | U41: 9z0 | V41: afwmm | W41: 41z1 | X41: 47w0 | Y41: 46z0
R42: 3z0 | S42: 71w0 | T42: 69z1 | U42: 25z1 | V42: 40w1 | W42: 22w½ | X42: 19z1 | Y42: 32w1
R43: 27w1 | S43: 5z0 | T43: 51w1 | U43: 35w1 | V43: aclub | W43: 6z1 | X43: 1z0 | Y43: 3w½
R44: 59z1 | S44: 68w½ | T44: 8w0 | U44: 33z1 | V44: afwmm | W44: 21z0 | X44: afwmm | Y44: 26w0
R45: 12z0 | S45: 34w1 | T45: 56z1 | U45: 47w1 | V45: afwmm | W45: 14z½ | X45: 7w0 | Y45: 29z0
R46: 55w1 | S46: 44z½ | T46: 4z0 | U46: 31w0 | V46: 58z1 | W46: afwmm | X46: afwmm | Y46: 51w1
R47: afwmm | S47: 32z0 | T47: 26w1 | U47: 46w1 | V47: 16z1 | W47: aclub | X47: 9z0 | Y47: afwmm
R48: afwmm | S48: afwmm | T48: 49w1 | U48: 30z0 | V48: aclub | W48: 47z1 | X48: afwmm | Y48: 27w1
R49: 10w½ | S49: 72z0 | T49: 19w1 | U49: afwmm | V49: 62z½ | W49: 57w1 | X49: 22z1 | Y49: 12w0
R50: 41w1 | S50: 52z1 | T50: 5w½ | U50: 71z½ | V50: 8w1 | W50: 9z0 | X50: 20z0 | Y50: aclad
R51: afwmm | S51: bye | T51: afwmm | U51: 22z0 | V51: 55w1 | W51: 39z1 | X51: 11w0 | Y51: 47z0
R52: 60w1 | S52: 23z0 | T52: afwmm | U52: 20w0 | V52: 44z1 | W52: 38w0 | X52: 40z0 | Y52: 50z½
R53: 54w0 | S53: 58z0 | T53: 59w1 | U53: 41w1 | V53: 29z0 | W53: 18z0 | X53: 39w1 | Y53: 15z½
R54: 37z0 | S54: 69w1 | T54: 27w0 | U54: 40z0 | V54: 42z1 | W54: 28w0 | X54: 51w0 | Y54: 57z½
R55: 16z0 | S55: 60w1 | T55: 47z0 | U55: 48z0 | V55: 41w0 | W55: 69z1 | X55: 15w0 | Y55: 58w1
R56: 58w1 | S56: 15z½ | T56: 10w0 | U56: 14w0 | V56: 26z0 | W56: 45w1 | X56: 52z0 | Y56: 62w1
R57: 75z½ | S57: 33w½ | T57: 24w0 | U57: 73z0 | V57: 39w0 | W57: 55z½ | X57: 58w1 | Y57: aclad
R58: 63w½ | S58: 51z0 | T58: 68z0 | U58: 65w1 | V58: 19w0 | W58: 43z0 | X58: 55w1 | Y58: afwmm
R59: 19w½ | S59: 10z0 | T59: 15w1 | U59: 34z0 | V59: afwmm | W59: aclub | X59: 25z½ | Y59: 28w1
R60: 4w0 | S60: 56z1 | T60: 42w1 | U60: 32z0 | V60: 24z½ | W60: 35w0 | X60: 28z1 | Y60: 38w1
R61: 67z0 | S61: 50w1 | T61: 6z0 | U61: 42w1 | V61: 53z0 | W61: afwmm | X61: afwmm | Y61: afwmm
R62: afwmm | S62: afwmm | T62: 35z0 | U62: afwmm | V62: 69w1 | W62: afwmm | X62: afwmm | Y62: 73w1
R63: 56w0 | S63: 48z0 | T63: afwmm | U63: 60z1 | V63: afwmm | W63: 52w0 | X63: 66z1 | Y63: 39w½
R64: afwmm | S64: 45w1 | T64: 30z0 | U64: afwmm | V64: 21w0 | W64: aclub | X64: 41z1 | Y64: 33z0
R65: 1z0 | S65: 37w0 | T65: 55z1 | U65: afwmm | V65: afwmm | W65: 50z1 | X65: 43w1 | Y65: 22w1
R66: afwmm | S66: afwmm | T66: afwmm | U66: afwmm | V66: 48w1 | W66: 12z½ | X66: afwmm | Y66: afwmm
R67: 40z1 | S67: 6w0 | T67: afwmm | U67: afwmm | V67: 57z½ | W67: aclub | X67: afwmm | Y67: 8z0
R68: 33z0 | S68: 22w0 | T68: 52w0 | U68: 59z1 | V68: 38z0 | W68: 44w½ | X68: 45z0 | Y68: 60w1
R69: 50z1 | S69: 47w0 | T69: 32w0 | U69: afwmm | V69: afwmm | W69: 58z1 | X69: 13w0 | Y69: aclad
R70: afwmm | S70: afwmm | T70: afwmm | U70: afwmm | V70: 54w½ | W70: 36z0 | X70: bye | Y70: 41w½
R71: 43z0 | S71: 40w1 | T71: 62w½ | U71: 68z0 | V71: 33w0 | W71: 56w0 | X71: 44z0 | Y71: 42z0
R72: 31w0 | S72: afwmm | T72: 40z0 | U72: 55w0 | V72: afwmm | W72: 65w1 | X72: 69z1 | Y72: afwmm
R73: 39z0 | S73: 42z0 | T73: afwmm | U73: 50w0 | V73: 70w½ | W73: bye | X73: 61z½ | Y73: 55z0
R74: afwmm | S74: 62z½ | T74: 9w0 | U74: 74z0 | V74: 15z0 | W74: afwmm | X74: 60w½ | Y74: 66w½
R75: afwmm | S75: 61w½ | T75: 58z½ | U75: afwmm | V75: 36w½ | W75: afwmm | X75: 18w0 | Y75: 43z0
R76: 45z½ | S76: afwmm | T76: afwmm | U76: afwmm | V76: afwmm | W76: afwmm | X76: afwmm | Y76: afwmm
R77: afwmm | S77: gnlid | T77: gnlid | U77: gnlid | V77: gnlid | W77: gnlid | X77: gnlid | Y77: gnlid
R78: afwmm | S78: afwmm | T78: 13w0 | U78: 45z0 | V78: 66w0 | W78: 59z0 | X78: afwmm | Y78: 69w1
R79: gnlid | S79: gnlid | T79: 22w0 | U79: 19z0 | V79: 65z1 | W79: 25w0 | X79: 50w0 | Y79: 61z½
R80: 48w1 | S80: 28z1 | T80: 71w½ | U80: afwmm | V80: afwmm | W80: afwmm | X80: gnlid | Y80: gnlid
R81: 14w0 | S81: 31z½ | T81: 45w1 | U81: 58w1 | V81: afwmm | W81: afwmm | X81: afwmm | Y81: afwmm
R82: 28w0 | S82: 41z0 | T82: 29w0 | U82: 70z1 | V82: 49z0 | W82: 42w0 | X82: 59w0 | Y82: 65z0
R83: 71z0 | S83: 24z0 | T83: 25w0 | U83: 69w0 | V83: 60z½ | W83: afwmm | X83: afwmm | Y83: afwmm
R84: 70w1 | S84: 29z1 | T84: 67z½ | U84: 37w½ | V84: 20z0 | W84: afwmm | X84: 23w0 | Y84: 16w½
R85: afwmm | S85: 36w1 | T85: 12z0 | U85: afwmm | V85: 73w1 | W85: afwmm | X85: afwmm | Y85: 14w0
R86: 24w1 | S86: 27z0 | T86: 23w0 | U86: 44w1 | V86: 72z0 | W86: 74w1 | X86: 17z0 | Y86: 49z0
R87: 21z½ | S87: 18w0 | T87: afwmm | U87: 61w1 | V87: afwmm | W87: 73z0 | X87: gnlid | Y87: gnlid
R88: 44w½ | S88: gnlid | T88: gnlid | U88: gnlid | V88: gnlid | W88: gnlid | X88: gnlid | Y88: gnlid

Sheet Game files
A1: Vienna 1873 chess tournament
A2: # | B2: Player | D2: 1 | E2: 2 | F2: 3 | G2: 4 | H2: 5 | I2: 6 | J2: 7 | K2: 8 | L2: 9 | M2: 10 | N2: 11 | O2: 12 | P2: Total | Q2: Final Total
A3: 1 | B3: Joseph Henry Blackburne (United Kingdom) / England | D3: x | E3: 1 1 ½ | F3: 1 0 1 | G3: 0 0 ½ | H3: 1 1 0 | I3: 1 1 | J3: 1 1 | K3: 1 1 0 | L3: 1 1 | M3: 1 1 0 | N3: 1 ½ 1 | O3: 0 1 1 | P3: 21.5 | Q3: 10.0
A4: 2 | B4: Wilhelm Steinitz (United Kingdom) / Bohemia | D4: 0 0 ½ | E4: x | F4: 1 1 | G4: 1 1 | H4: 1 1 | I4: 1 1 | J4: 1 1 | K4: ½ ½ 1 | L4: ½ ½ 1 | M4: 1 1 | N4: 1 1 | O4: 1 1 | P4: 20.5 | Q4: 10.0
A5: 3 | B5: Adolf Anderssen (German Empire) / Silesia Prussian Silesia | D5: 0 1 0 | E5: 0 0 | F5: x | G5: 1 0 1 | H5: 1 1 | I5: 1 0 1 | J5: 1 0 1 | K5: 0 ½ 1 | L5: ½ 1 ½ | M5: 1 1 0 | N5: 1 1 | O5: 1 ½ 1 | P5: 19.0 | Q5: 8.5
A6: 4 | B6: Samuel Rosenthal (France) / Poland | D6: 1 1 ½ | E6: 0 0 | F6: 0 1 0 | G6: x | H6: 0 ½ 1 | I6: 0 0 | J6: 1 1 0 | K6: 1 1 | L6: 1 1 | M6: 1 1 | N6: 0 1 1 | O6: 1 1 | P6: 17.0 | Q6: 7.5
A7: 5 | B7: Louis Paulsen (German Empire) / Flag of Lippe Lippe | D7: 0 0 1 | E7: 0 0 | F7: 0 0 | G7: 1 ½ 0 | H7: x | I7: 1 1 | J7: 0 ½ 1 | K7: 1 1 | L7: 1 ½ 1 | M7: 1 ½ 0 | N7: 1 1 | O7: 1 1 | P7: 16.0 | Q7: 6.5
A8: 6 | B8: Henry Edward Bird (United Kingdom) / England | D8: 0 0 | E8: 0 0 | F8: 0 1 0 | G8: 1 1 | H8: 0 0 | I8: x | J8: 1 0 ½ | K8: 1 1 | L8: 1 1 | M8: 1 1 | N8: 1 1 | O8: 1 1 | P8: 14.5 | Q8: 6.5
A9: 7 | B9: Josef Heral (Austria-Hungary) / Austria | D9: 0 0 | E9: 0 0 | F9: 0 1 0 | G9: 0 0 1 | H9: 1 ½ 0 | I9: 0 1 ½ | J9: x | K9: ½ 1 0 | L9: 0 1 ½ | M9: 1 0 ½ | N9: ½ 1 0 | O9: 0 0 1 | P9: 12.0 | Q9: 3.0
A10: 8 | B10: Max Fleissig (Austria-Hungary) / Hungary | D10: 0 0 1 | E10: ½ ½ 0 | F10: 1 ½ 0 | G10: 0 0 | H10: 0 0 | I10: 0 0 | J10: ½ 0 1 | K10: x | L10: 1 0 1 | M10: 0 1 ½ | N10: 0 1 0 | O10: 1 1 | P10: 11.5 | Q10: 3.5
A11: 9 | B11: Philipp Meitner (Austria-Hungary) / Austria | D11: 0 0 | E11: ½ ½ 0 | F11: ½ 0 ½ | G11: 0 0 | H11: 0 ½ 0 | I11: 0 0 | J11: 1 0 ½ | K11: 0 1 0 | L11: x | M11: ½ 1 1 | N11: 1 ½ ½ | O11: 1 1 | P11: 11.5 | Q11: 3.5
A12: 10 | B12: Adolf Schwarz (Austria-Hungary) / Hungary | D12: 0 0 1 | E12: 0 0 | F12: 0 0 1 | G12: 0 0 | H12: 0 ½ 1 | I12: 0 0 | J12: 0 1 ½ | K12: 1 0 ½ | L12: ½ 0 0 | M12: x | N12: ½ ½ ½ | O12: 1 ½ ½ | P12: 10.5 | Q12: 3.0
A13: 11 | B13: Oscar Gelbfuhs (Austria-Hungary) / Flag of Czech Silesia Austrian Silesia | D13: 0 ½ 0 | E13: 0 0 | F13: 0 0 | G13: 1 0 0 | H13: 0 0 | I13: 0 0 | J13: ½ 0 1 | K13: 1 0 1 | L13: 0 ½ ½ | M13: ½ ½ ½ | N13: x | O13: ½ 1 1 | P13: 10.0 | Q13: 3.0
A14: 12 | B14: Karl Pitschel (Austria-Hungary) / Austria | D14: 1 0 0 | E14: 0 0 | F14: 0 ½ 0 | G14: 0 0 | H14: 0 0 | I14: 0 0 | J14: 1 1 0 | K14: 0 0 | L14: 0 0 | M14: 0 ½ ½ | N14: ½ 0 0 | O14: x | P14: 5.0 | Q14: 1.0
A16: Mannheim 1914 - - Group 1
A17: Rondedossier t/m Ronde 11
A18: Pos | B18: Naam | D18: 1 | E18: 2 | F18: 3 | G18: 4 | H18: 5 | I18: 6 | J18: 7 | K18: 8 | L18: 9 | M18: 10 | N18: 11
A19: 1 | B19: Alekhine | D19: 10z1 | E19: 16w½ | F19: 14z1 | G19: 4w1 | H19: 15z1 | I19: 7z0 | J19: 8w1 | K19: 17z1 | L19: 9w1 | M19: 18z1 | N19: 13w1
A20: 2 | B20: Vidmar | D20: 7w1 | E20: 6w1 | F20: 12z½ | G20: 11w1 | H20: 3z½ | I20: 5w½ | J20: 10z½ | K20: 16w1 | L20: 14z1 | M20: 4w½ | N20: 15z1
A21: 3 | B21: Spielmann | D21: 17w1 | E21: 9z1 | F21: 18w1 | G21: 13z1 | H21: 2w½ | I21: 6z½ | J21: 12w½ | K21: 11z1 | L21: 7w0 | M21: 5w1 | N21: 10z½
A22: 4 | B22: Breyer | D22: 14z½ | E22: 7z½ | F22: 15w1 | G22: 1z0 | H22: 8w0 | I22: 17z1 | J22: 9w1 | K22: 18z1 | L22: 13w1 | M22: 2z½ | N22: 6w½
A23: 5 | B23: Marshall | D23: 8w½ | E23: 17z½ | F23: 9w½ | G23: 18z½ | H23: 13w1 | I23: 2z½ | J23: 6w1 | K23: 12z½ | L23: 11w1 | M23: 3z0 | N23: 7w1
A24: 6 | B24: Reti | D24: 13w1 | E24: 2z0 | F24: 7w½ | G24: 12w1 | H24: 11z1 | I24: 3w½ | J24: 5z0 | K24: 10w1 | L24: 16z1 | M24: 14w½ | N24: 4z½
A25: 7 | B25: Janovski | D25: 2z0 | E25: 4w½ | F25: 6z½ | G25: 15w½ | H25: 12z1 | I25: 1w1 | J25: 11z0 | K25: 8w1 | L25: 3z1 | M25: 17w1 | N25: 5z0
A26: 8 | B26: Bogoljubov | D26: 5z½ | E26: 10w0 | F26: 16z½ | G26: 14w1 | H26: 4z1 | I26: 15w1 | J26: 1z0 | K26: 7z0 | L26: 17w0 | M26: 9z½ | N26: 18w1
A27: 9 | B27: Tarrash | D27: 11z0 | E27: 3w0 | F27: 5z½ | G27: 10w1 | H27: 16z1 | I27: 14w1 | J27: 4z0 | K27: 15w1 | L27: 1z0 | M27: 8w½ | N27: 17z½
A28: 10 | B28: Duras | D28: 1w0 | E28: 8z1 | F28: 17w1 | G28: 9z0 | H28: 18w1 | I28: 13z0 | J28: 2w½ | K28: 6z0 | L28: 12w0 | M28: 11z1 | N28: 3w½
A29: 11 | B29: W John | D29: 9w1 | E29: 18z0 | F29: 13w1 | G29: 2z0 | H29: 6w0 | I29: 12z1 | J29: 7w1 | K29: 3w0 | L29: 5z0 | M29: 10w0 | N29: 16z1
A30: 12 | B30: Tartakower | D30: 18w1 | E30: 13z½ | F30: 2w½ | G30: 6z0 | H30: 7w0 | I30: 11w0 | J30: 3z½ | K30: 5w½ | L30: 10z1 | M30: 16w½ | N30: 14z0
A31: 13 | B31: Fahrni | D31: 6z0 | E31: 12w½ | F31: 11z0 | G31: 3w0 | H31: 5z0 | I31: 10w1 | J31: 16z½ | K31: 14w1 | L31: 4z0 | M31: 15w1 | N31: 1z0
A32: 14 | B32: AE Post | D32: 4w½ | E32: 15z0 | F32: 1w0 | G32: 8z0 | H32: 17w1 | I32: 9z0 | J32: 18w1 | K32: 13z0 | L32: 2w0 | M32: 6z½ | N32: 12w1
A33: 15 | B33: Carls | D33: 16z½ | E33: 14w1 | F33: 4z0 | G33: 7z½ | H33: 1w0 | I33: 8z0 | J33: 17w½ | K33: 9z0 | L33: 18w1 | M33: 13z0 | N33: 2w0
A34: 16 | B34: P Kruger | D34: 15w½ | E34: 1z½ | F34: 8w½ | G34: 17z½ | H34: 9w0 | I34: 18z½ | J34: 13w½ | K34: 2z0 | L34: 6w0 | M34: 12z½ | N34: 11w0
A35: 17 | B35: Flamberg | D35: 3z0 | E35: 5w½ | F35: 10z0 | G35: 16w½ | H35: 14z0 | I35: 4w0 | J35: 15z½ | K35: 1w0 | L35: 8z1 | M35: 7z0 | N35: 9w½
A36: 18 | B36: Mieses | D36: 12z0 | E36: 11w1 | F36: 3z0 | G36: 5w½ | H36: 10z0 | I36: 16w½ | J36: 14z0 | K36: 4w0 | L36: 15z0 | M36: 1w0 | N36: 8z0
A39: New York Masters 1924 | S39: 12 iter | T39: 13 iter | U39: 14 iter
A40: # | B40: Player | D40: 1 | E40: 2 | F40: 3 | G40: 4 | H40: 5 | I40: 6 | J40: 7 | K40: 8 | L40: 9 | M40: 10 | N40: 11 | O40: Total | S40: PR Elo | T40: PR Elo | U40: PR Elo
A41: 1 | B41: Emanuel Lasker (Germany) | D41: xx | E41: ½0 | F41: 1½ | G41: ½1 | H41: 11 | I41: 11 | J41: 11 | K41: ½1 | L41: ½1 | M41: ½1 | N41: 11 | O41: 16 | S41: 233.7583366 | T41: 233.7583366 | U41: 233.7583366
A42: 2 | B42: José Raúl Capablanca (Cuba) | D42: ½1 | E42: xx | F42: ½½ | G42: ½½ | H42: 01 | I42: ½1 | J42: 11 | K42: 11 | L42: 1½ | M42: ½1 | N42: ½1 | O42: 14½ | S42: 166.0631727 | T42: 166.0631727 | U42: 166.0631727
A43: 3 | B43: Alexander Alekhine (France) | D43: 0½ | E43: ½½ | F43: ** | G43: ½½ | H43: 10 | I43: 1½ | J43: ½½ | K43: ½½ | L43: 11 | M43: ½½ | N43: 11 | O43: 12 | S43: 69.45005594 | T43: 69.45005594 | U43: 69.45005594
A44: 4 | B44: Frank Marshall (United States) | D44: ½0 | E44: ½½ | F44: ½½ | G44: xx | H44: ½1 | I44: 0½ | J44: 01 | K44: ½0 | L44: ½1 | M44: 1½ | N44: 11 | O44: 11 | S44: 33.61068847 | T44: 33.61068847 | U44: 33.61068847
A45: 5 | B45: Richard Réti (Czechoslovakia) | D45: 00 | E45: 10 | F45: 01 | G45: ½0 | H45: xx | I45: ½½ | J45: 01 | K45: 11 | L45: 10 | M45: 10 | N45: 11 | O45: 10½ | S45: 15.95914266 | T45: 15.95914266 | U45: 15.95914266
A46: 6 | B46: Géza Maróczy (Hungary) | D46: 00 | E46: ½0 | F46: 0½ | G46: 1½ | H46: ½½ | I46: xx | J46: 01 | K46: ½½ | L46: 11 | M46: ½1 | N46: 10 | O46: 10 | S46: -1.606178936 | T46: -1.606178936 | U46: -1.606178936
A47: 7 | B47: Efim Bogoljubow (Soviet Union) | D47: 00 | E47: 00 | F47: ½½ | G47: 10 | H47: 10 | I47: 10 | J47: xx | K47: 01 | L47: 11 | M47: ½1 | N47: 01 | O47: 9½ | S47: -19.15213595 | T47: -19.15213595 | U47: -19.15213595
A48: 8 | B48: Savielly Tartakower (Poland) | D48: ½0 | E48: 00 | F48: ½½ | G48: ½1 | H48: 00 | I48: ½½ | J48: 10 | K48: xx | L48: 10 | M48: ½0 | N48: ½1 | O48: 8 | S48: -72.3518632 | T48: -72.3518632 | U48: -72.3518632
A49: 9 | B49: Frederick Yates (England) | D49: ½0 | E49: 0½ | F49: 00 | G49: ½0 | H49: 01 | I49: 00 | J49: 00 | K49: 01 | L49: xx | M49: 11 | N49: ½1 | O49: 7 | S49: -109.0252143 | T49: -109.0252143 | U49: -109.0252143
A50: 10 | B50: Edward Lasker (United States) | D50: ½0 | E50: ½0 | F50: ½½ | G50: 0½ | H50: 01 | I50: ½0 | J50: ½0 | K50: ½1 | L50: 00 | M50: xx | N50: 0½ | O50: 6½ | S50: -127.9818399 | T50: -127.9818399 | U50: -127.9818399
A51: 11 | B51: Dawid Janowski (France) | D51: 00 | E51: ½0 | F51: 00 | G51: 00 | H51: 00 | I51: 01 | J51: 10 | K51: ½0 | L51: ½0 | M51: 1½ | N51: xx | O51: 5 | S51: -188.7241641 | T51: -188.7241641 | U51: -188.7241641
A54: Linares-Group1
A55: Rondedossier t/m Round 14
A56: Pos | B56: Naam | D56: 1 | E56: 2 | F56: 3 | G56: 4 | H56: 5 | I56: 6 | J56: 7 | K56: 8 | L56: 9 | M56: 10 | N56: 11 | O56: 12 | P56: 13 | Q56: 14 | S56: PrN
A57: 1 | B57: VeselinTopalov | C57: 2757 | D57: 5w1 | E57: 3z0 | G57: 4w½ | H57: 7z½ | I57: 6w1 | J57: 2z½ | K57: 5z½ | L57: 3w½ | N57: 4z½ | O57: 7w1 | P57: 6z1 | Q57: 2w1 | S57: 107.6759593
A58: 2 | B58: Gary Kasparov | C58: 2804 | D58: 4z½ | E58: 7w½ | F58: 6z1 | H58: 5w1 | I58: 3z½ | J58: 1w½ | K58: 4w½ | L58: 7z1 | M58: 6w1 | O58: 5z1 | P58: 3w½ | Q58: 1z0 | S58: 107.6759593
A59: 3 | B59: Viswanathan Anand | C59: 2786 | E59: 1w1 | F59: 4z½ | G59: 7w½ | H59: 6z½ | I59: 2w½ | J59: 5z½ | L59: 1z½ | M59: 4w½ | N59: 7z1 | O59: 6w½ | P59: 2z½ | Q59: 5w0 | S59: 26.24808599
A60: 4 | B60: Peter Leko | C60: 2749 | D60: 2w½ | E60: 5z½ | F60: 3w½ | G60: 1z½ | I60: 7w½ | J60: 6z½ | K60: 2z½ | L60: 5w½ | M60: 3z½ | N60: 1w½ | P60: 7z½ | Q60: 6w½ | S60: 0
A61: 5 | B61: Michaels Adams | C61: 2741 | D61: 1z0 | E61: 4w½ | F61: 7z½ | G61: 6w1 | H61: 2z0 | J61: 3w½ | K61: 1w½ | L61: 4z½ | M61: 7w½ | N61: 6z½ | O61: 2w0 | Q61: 3z1 | S61: -26.24808599
A62: 6 | B62: Fransisco Vallejo Pons | C62: 2686 | D62: 7z½ | F62: 2w0 | G62: 5z0 | H62: 3w½ | I62: 1z0 | J62: 4w½ | K62: 7w1 | M62: 2z0 | N62: 5w½ | O62: 3z½ | P62: 1w0 | Q62: 4z½ | S62: -107.6759593
A63: 7 | B63: Rustam Kasimdzhanov | C63: 2678 | D63: 6w½ | E63: 2z½ | F63: 5w½ | G63: 3z½ | H63: 1w½ | I63: 4z½ | K63: 6z0 | L63: 2w0 | M63: 5z½ | N63: 3w0 | O63: 1z0 | P63: 4w½ | S63: -107.6759593
A66: Bi-partite
A67: One step by CG-method if expectation function is lineair, and gamefile is round-robin/bi-partite | D67: xx | H67: ½1 | I67: ½1 | J67: ½1 | K67: ½1
E68: xx | H68: ½1 | I68: ½1 | J68: ½1 | K68: ½1
F69: xx | H69: ½1 | I69: ½1 | J69: ½1 | K69: ½1
G70: xx | H70: ½1 | I70: ½1 | J70: ½1 | K70: ½1
D71: ½0 | E71: ½0 | F71: ½0 | G71: ½0 | H71: xx
D72: ½0 | E72: ½0 | F72: ½0 | G72: ½0 | I72: xx
D73: ½0 | E73: ½0 | F73: ½0 | G73: ½0 | J73: xx
A74: 2018 Zomerrapid 020 | D74: ½0 | E74: ½0 | F74: ½0 | G74: ½0 | K74: xx
A75: https://toernooibase.kndb.nl/opvraag/standen.php?taal=&kl=46&Id=7020&jr=19&afko=46&r=
C78: Rating | E78: =COLUMNS($D:D) -> 1 | F78: =COLUMNS($D:E) -> 2 | G78: =COLUMNS($D:F) -> 3 | H78: =COLUMNS($D:G) -> 4 | I78: =COLUMNS($D:H) -> 5 | J78: =COLUMNS($D:I) -> 6 | K78: =COLUMNS($D:J) -> 7 | L78: =COLUMNS($D:K) -> 8 | M78: =COLUMNS($D:L) -> 9 | N78: =COLUMNS($D:M) -> 10 | O78: =COLUMNS($D:N) -> 11 | P78: =COLUMNS($D:O) -> 12 | Q78: =COLUMNS($D:P) -> 13 | R78: =COLUMNS($D:Q) -> 14 | S78: =COLUMNS($D:R) -> 15 | T78: =COLUMNS($D:S) -> 16 | U78: =COLUMNS($D:T) -> 17 | V78: =COLUMNS($D:U) -> 18 | W78: =COLUMNS($D:V) -> 19 | X78: =COLUMNS($D:W) -> 20 | Y78: =COLUMNS($D:X) -> 21
A79: =ROWS($6:79) -> 74 | B79: Hein Meijer | C79: 2305 | E79: × | F79: 1121 | G79: 1112 | H79: 12 | I79: 20 | J79: 222 | L79: 22 | N79: 2 | O79: 12 | P79: 11 | R79: 22 | S79: 2 | U79: 1 | V79: 2
A80: =ROWS($6:80) -> 75 | B80: Hans Jansen | C80: 2315 | E80: 1101 | F80: × | G80: 222 | H80: 2 | I80: 222 | J80: 22 | K80: 2 | L80: 2 | N80: 2 | O80: 22 | P80: 22 | R80: 2
A81: =ROWS($6:81) -> 76 | B81: Johan Smits | C81: 2129 | E81: 1110 | F81: 000 | G81: × | H81: 012 | I81: 10 | J81: 2 | K81: 1 | L81: 2112 | M81: 0 | N81: 22 | P81: 1 | Q81: 222 | R81: 1 | S81: 1 | T81: 22 | V81: 1
A82: =ROWS($6:82) -> 77 | B82: Krijn ter Braake | C82: 2137 | E82: 10 | F82: 0 | G82: 210 | H82: × | I82: 1 | J82: 2222 | L82: 2 | M82: 0 | P82: 2 | W82: 2
A83: =ROWS($6:83) -> 78 | B83: Kees Pippel | C83: 2206 | E83: 02 | F83: 000 | G83: 12 | H83: 1 | I83: × | J83: 22 | K83: 1 | M83: 0 | N83: 2 | O83: 0 | U83: 1
A84: =ROWS($6:84) -> 79 | B84: John Stins | C84: 2065 | E84: 000 | F84: 00 | G84: 0 | H84: 0000 | I84: 00 | J84: × | L84: 0 | N84: 202 | R84: 0 | T84: 2 | X84: 2 | Y84: 2
A85: =ROWS($6:85) -> 80 | B85: Marco de Koning | C85: 2129 | F85: 0 | G85: 1 | I85: 1 | K85: × | L85: 2 | N85: 2 | P85: 2
A86: =ROWS($6:86) -> 81 | B86: Paul Lohuis | C86: 1800 | E86: 00 | F86: 0 | G86: 0110 | H86: 0 | J86: 2 | K86: 0 | L86: × | N86: 1 | P86: 2 | Q86: 0 | S86: 0 | V86: 1
A87: =ROWS($6:87) -> 82 | B87: Kees Thijssen | C87: 2336 | G87: 2 | H87: 2 | I87: 2 | M87: ×
A88: =ROWS($6:88) -> 83 | B88: Frank Zwerver | C88: 1900 | E88: 0 | F88: 0 | G88: 00 | I88: 0 | J88: 020 | K88: 0 | L88: 1 | N88: × | Q88: 21
A89: =ROWS($6:89) -> 84 | B89: Peter van Heun | C89: 2145 | E89: 10 | F89: 00 | I89: 2 | O89: × | P89: 2
A90: =ROWS($6:90) -> 85 | B90: Willem Winter | C90: 2109 | E90: 11 | F90: 00 | G90: 1 | H90: 0 | K90: 0 | L90: 0 | O90: 0 | P90: × | R90: 1 | T90: 1
A91: =ROWS($6:91) -> 86 | B91: Huub Kroes | C91: 1800 | G91: 000 | L91: 2 | N91: 01 | Q91: × | S91: 1 | T91: 01
A92: =ROWS($6:92) -> 87 | B92: Jan Pieter Drost | C92: 2144 | E92: 00 | F92: 0 | G92: 1 | J92: 2 | P92: 1 | R92: ×
A93: =ROWS($6:93) -> 88 | B93: Gerrit Tigchelaar | C93: 1971 | E93: 0 | G93: 1 | L93: 2 | Q93: 1 | S93: ×
A94: =ROWS($6:94) -> 89 | B94: Rajiv Balradj | C94: 1914 | G94: 00 | J94: 0 | P94: 1 | Q94: 21 | T94: ×
A95: =ROWS($6:95) -> 90 | B95: Johan Wiering | C95: 2226 | E95: 1 | I95: 1 | U95: ×
A96: =ROWS($6:96) -> 91 | B96: Hans van den Heuvel | C96: 2011 | E96: 0 | G96: 1 | L96: 1 | V96: ×
A97: =ROWS($6:97) -> 92 | B97: Roep Bhawanibhiek | C97: 2092 | H97: 0 | W97: ×
A98: =ROWS($6:98) -> 93 | B98: Kries Kalidien | C98: 1879 | J98: 0 | X98: ×
A99: =ROWS($6:99) -> 94 | B99: Joep Kooijman | C99: 1800 | J99: 0 | Y99: ×
D102: xx | H102: ½1 | I102: ½1 | J102: ½1 | K102: ½1
E103: xx | H103: ½1 | I103: ½1 | J103: ½1 | K103: ½1
F104: xx | H104: ½1 | I104: ½1 | J104: ½1 | K104: ½1
G105: xx | H105: ½1 | I105: ½1 | J105: ½1 | K105: ½1
D106: ½0 | E106: ½0 | F106: ½0 | G106: ½0 | H106: xx
D107: ½0 | E107: ½0 | F107: ½0 | G107: ½0 | I107: xx
D108: ½0 | E108: ½0 | F108: ½0 | G108: ½0 | J108: xx
D109: ½0 | E109: ½0 | F109: ½0 | G109: ½0 | K109: xx

Sheet Convert FMJD GF
A1: Toernooibase> Toernooien> 2018/19>Europees Kampioenschap Moskou (Ingelogd !)>FMJD Icon
A2: https://toernooibase.kndb.nl/opvraag/matrixnewfmjd.php?taal=&kl=23&Id=7909&jr=19
A4: Pl | B4: FMJD-id | C4: Title | D4: Name | E4: Cn | F4: FMJD-
F5: rating | G5: R1 | H5: R2 | I5: R3 | J5: R4 | K5: R5 | L5: R6 | M5: R7 | N5: R8 | O5: R9 | P5: Pt
A6: 1 | B6: 17207 | D6: Michael Semyaniuk | E6: by | F6: 2148 | G6: 2/15w | H6: 2/18w | I6: 1/2b | J6: 1/3b | K6: 2/5w | L6: 1/4w | M6: 2/13b | N6: 1/6b | O6: 1/7w | P6: 13
A7: 2 | B7: 10122 | C7: gmi | D7: Alexander Georgiev | E7: ru | F7: 2418 | G7: 2/29w | H7: 2/43b | I7: 1/1w | J7: 0/5w | K7: 1/10b | L7: 1/14w | M7: 2/27b | N7: 2/11b | O7: 2/13w | P7: 13
A8: 3 | B8: 15558 | C8: gmi | D8: Martijn van IJzendoorn | E8: nl | F8: 2397 | G8: 2/39b | H8: 2/21w | I8: 1/5b | J8: 1/1w | K8: 1/6b | L8: 1/7w | M8: 1/9b | N8: 2/18w | O8: 1/4b | P8: 12
A9: 4 | B9: 10013 | C9: gmi | D9: Evgeni Vatutin | E9: by | F9: 2319 | G9: 2/44w | H9: 1/31b | I9: 1/6w | J9: 2/11b | K9: 1/13w | L9: 1/1b | M9: 1/7b | N9: 2/15w | O9: 1/3w | P9: 12
A10: 5 | B10: 13688 | C10: mi | D10: Nicolay Germogenov | E10: ru | F10: 2299 | G10: 2/48b | H10: 2/37w | I10: 1/3w | J10: 2/2b | K10: 0/1b | L10: 1/6w | M10: 1/18b | N10: 1/7w | O10: 1/8w | P10: 11
A11: 6 | B11: 16351 | C11: mi | D11: Jitse Slump | E11: nl | F11: 2271 | G11: 2/53b | H11: 1/16w | I11: 1/4b | J11: 2/20b | K11: 1/3w | L11: 1/5b | M11: 1/15w | N11: 1/1w | O11: 1/9w | P11: 11
A12: 7 | B12: 10190 | C12: gmi | D12: Alexander Getmanski | E12: ru | F12: 2374 | G12: 1/30w | H12: 2/47b | I12: 1/19w | J12: 1/8w | K12: 2/16b | L12: 1/3b | M12: 1/4w | N12: 1/5b | O12: 1/1b | P12: 11
A13: 8 | B13: 10008 | C13: gmi | D13: Alexey Chizhov | E13: ru | F13: 2406 | G13: 2/32w | H13: 1/17b | I13: 1/11w | J13: 1/7b | K13: 1/26w | L13: 1/12w | M13: 1/14b | N13: 2/19w | O13: 1/5b | P13: 11
A14: 9 | B14: 13291 | C14: gmi | D14: Ivan Trofimov | E14: ru | F14: 2342 | G14: 1/34w | H14: 2/38b | I14: 1/12w | J14: 1/17b | K14: 1/14b | L14: 2/40w | M14: 1/3w | N14: 1/13w | O14: 1/6b | P14: 11
A15: 10 | B15: 10003 | C15: gmi | D15: Alexander Baliakin | E15: nl | F15: 2412 | G15: 1/22b | H15: 2/33w | I15: 1/16b | J15: 2/28w | K15: 1/2w | L15: 0/13b | M15: 1/21b | N15: 1/20w | O15: 2/26w | P15: 11
A16: 11 | B16: 16349 | C16: gmi | D16: Jan Groenendijk | E16: nl | F16: 2376 | G16: 1/47b | H16: 2/30w | I16: 1/8b | J16: 0/4w | K16: 2/42b | L16: 2/37w | M16: 1/17b | N16: 0/2w | O16: 2/28b | P16: 11
A17: 12 | B17: 13723 | D17: Sergey Belosheev | E17: ru | F17: 2262 | G17: 2/49b | H17: 1/19w | I17: 1/9b | J17: 1/16w | K17: 1/17w | L17: 1/8b | M17: 1/26w | N17: 2/38b | O17: 1/14b | P17: 11
A18: 13 | B18: 10342 | C18: mi | D18: Vladimir Traitelovich | E18: il | F18: 2356 | G18: 1/38b | H18: 2/34w | I18: 1/17w | J18: 2/19b | K18: 1/4b | L18: 2/10w | M18: 0/1w | N18: 1/9b | O18: 0/2b | P18: 10
A19: 14 | B19: 10002 | C19: gmi | D19: Guntis Valneris | E19: lv | F19: 2379 | G19: 1/33w | H19: 2/22b | I19: 1/31w | J19: 1/15b | K19: 1/9w | L19: 1/2b | M19: 1/8w | N19: 1/26b | O19: 1/12w | P19: 10
A20: 15 | B20: 13516 | C20: gmi | D20: Ainur Shaibakov | E20: ru | F20: 2350 | G20: 0/1b | H20: 2/50w | I20: 2/52b | J20: 1/14w | K20: 1/19b | L20: 2/31w | M20: 1/6b | N20: 0/4b | O20: 1/25w | P20: 10
A21: 16 | B21: 10023 | C21: gmi | D21: Ron Heusdens | E21: nl | F21: 2355 | G21: 2/35w | H21: 1/6b | I21: 1/10w | J21: 1/12b | K21: 0/7w | L21: 2/30b | M21: 1/28w | N21: 1/21b | O21: 1/23b | P21: 10
A22: 17 | B22: 10066 | C22: gmi | D22: Alexander Bulatov | E22: by | F22: 2278 | G22: 2/46w | H22: 1/8w | I22: 1/13b | J22: 1/9w | K22: 1/12b | L22: 1/26b | M22: 1/11w | N22: 1/28b | O22: 1/20b | P22: 10
A23: 18 | B23: 10063 | C23: gmi | D23: Jos Stokkel | E23: nl | F23: 2304 | G23: 2/50w | H23: 0/1b | I23: 2/42w | J23: 1/37b | K23: 1/27w | L23: 2/29b | M23: 1/5w | N23: 0/3b | O23: 1/21w | P23: 10
A24: 19 | B24: 16091 | C24: gmi | D24: Wouter Sipma | E24: nl | F24: 2332 | G24: 2/45w | H24: 1/12b | I24: 1/7b | J24: 0/13w | K24: 1/15w | L24: 1/39b | M24: 2/40w | N24: 0/8b | O24: 2/41b | P24: 10
A25: 20 | B25: 14086 | C25: mi | D25: Nikolai Gulyaev | E25: ru | F25: 2307 | G25: 1/42b | H25: 2/41w | I25: 1/28b | J25: 0/6w | K25: 1/24b | L25: 1/25b | M25: 2/39w | N25: 1/10b | O25: 1/17w | P25: 10
A26: 21 | B26: 14030 | C26: mi | D26: Kevin Machtelinck | E26: fr | F26: 2273 | G26: 2/54b | H26: 0/3b | I26: 1/37w | J26: 2/41w | K26: 1/40b | L26: 1/27b | M26: 1/10w | N26: 1/16w | O26: 1/18b | P26: 10
A27: 22 | B27: 16287 | C27: mf | D27: Uladzislau Valjuk | E27: by | F27: 2218 | G27: 1/10w | H27: 0/14w | I27: 1/35b | J27: 0/32b | K27: 2/54w | L27: 1/33b | M27: 2/51b | N27: 1/29w | O27: 2/38w | P27: 10
A28: 23 | B28: 17429 | C28: cmf | D28: Anatolyi Protodyakonov | E28: ru | F28: 2137 | G28: 1/27w | H28: 1/26b | I28: 1/24b | J28: 1/43w | K28: 1/30w | L28: 1/32w | M28: 1/37b | N28: 2/49b | O28: 1/16w | P28: 10
A29: 24 | B29: 10006 | C29: gmi | D29: Edvard Buzinskij | E29: lt | F29: 2307 | G29: 1/36w | H29: 1/42b | I29: 1/23w | J29: 1/47b | K29: 1/20w | L29: 1/38b | M29: 1/30w | N29: 1/27w | O29: 2/37b | P29: 10
A30: 25 | B30: 18918 | C30: mi | D30: Wouter Wolff | E30: nl | F30: 2332 | G30: 0/37b | H30: 1/48w | I30: 2/53b | J30: 1/39w | K30: 1/28b | L30: 1/20w | M30: 1/29b | N30: 2/32b | O30: 1/15b | P30: 10
A31: 26 | B31: 10124 | C31: gmi | D31: Aleksej Domchev | E31: lt | F31: 2316 | G31: 1/40b | H31: 1/23w | I31: 1/39b | J31: 2/33w | K31: 1/8b | L31: 1/17w | M31: 1/12b | N31: 1/14w | O31: 0/10b | P31: 9
A32: 27 | B32: 10304 | C32: gmi | D32: Murodullo Amrillaev | E32: ru | F32: 2339 | G32: 1/23b | H32: 1/40w | I32: 1/29b | J32: 2/44w | K32: 1/18b | L32: 1/21w | M32: 0/2w | N32: 1/24b | O32: 1/31w | P32: 9
A33: 28 | B33: 10728 | C33: mf | D33: Sergei Kalinov | E33: ru | F33: 2281 | G33: 1/41w | H33: 2/36b | I33: 1/20w | J33: 0/10b | K33: 1/25w | L33: 2/43b | M33: 1/16b | N33: 1/17w | O33: 0/11w | P33: 9
A34: 29 | B34: 11582 | C34: mi | D34: Alexander Verkhovykh | E34: ru | F34: 2236 | G34: 0/2b | H34: 2/51w | I34: 1/27w | J34: 2/35b | K34: 1/31b | L34: 0/18w | M34: 1/25w | N34: 1/22b | O34: 1/30w | P34: 9
A35: 30 | B35: 17237 | C35: mf | D35: Alessio Scaggiante | E35: it | F35: 2174 | G35: 1/7b | H35: 0/11b | I35: 1/32w | J35: 2/55w | K35: 1/23b | L35: 0/16w | M35: 1/24b | N35: 2/46w | O35: 1/29b | P35: 9
A36: 31 | B36: 11066 | C36: mf | D36: Vasily Kytchkin | E36: ru | F36: 2249 | G36: 2/55w | H36: 1/4w | I36: 1/14b | J36: 1/40b | K36: 1/29w | L36: 0/15b | M36: 1/32w | N36: 1/37w | O36: 1/27b | P36: 9
A37: 32 | B37: 13225 | C37: mf | D37: Kirill Chulkov | E37: ru | F37: 2214 | G37: 0/8b | H37: 1/46w | I37: 1/30b | J37: 2/22w | K37: 1/38w | L37: 1/23b | M37: 1/31b | N37: 0/25w | O37: 2/48w | P37: 9
A38: 33 | B38: 15697 | C38: mf | D38: Koos van Amerongen | E38: nl | F38: 2181 | G38: 1/14b | H38: 0/10b | I38: 2/36w | J38: 0/26b | K38: 1/41w | L38: 1/22w | M38: 1/45w | N38: 1/35b | O38: 2/49w | P38: 9
A39: 34 | B39: 10147 | C39: mf | D39: Villem Lüüs | E39: ee | F39: 2144 | G39: 1/9b | H39: 0/13b | I39: 1/46w | J39: 1/45w | K39: 1/36b | L39: 1/49b | M39: 1/35w | N39: 1/48w | O39: 2/50b | P39: 9
A40: 35 | B40: 10673 | C40: mf | D40: Aleksandr Surkov | E40: ru | F40: 2153 | G40: 0/16b | H40: 2/53w | I40: 1/22w | J40: 0/29w | K40: 1/47b | L40: 1/44b | M40: 1/34b | N40: 1/33w | O40: 2/54w | P40: 9
A41: 36 | B41: 10312 | C41: mf | D41: Raphaël Zdoroviak | E41: de | F41: 2078 | G41: 1/24b | H41: 0/28w | I41: 0/33b | J41: 2/51b | K41: 1/34w | L41: 0/41b | M41: 2/56w | N41: 1/40b | O41: 2/47w | P41: 9
A42: 37 | B42: 18517 | C42: cmf | D42: Daniil Ilin | E42: ru | F42: 2120 | G42: 2/25w | H42: 0/5b | I42: 1/21b | J42: 1/18w | K42: 2/48w | L42: 0/11b | M42: 1/23w | N42: 1/31b | O42: 0/24w | P42: 8
A43: 38 | B43: 15266 | C43: mf | D43: Daniele Macali | E43: it | F43: 2156 | G43: 1/13w | H43: 0/9w | I43: 1/45b | J43: 2/52w | K43: 1/32b | L43: 1/24w | M43: 2/41b | N43: 0/12w | O43: 0/22b | P43: 8
A44: 39 | B44: 10729 | C44: mf | D44: Valery Kudriavcev | E44: lt | F44: 2211 | G44: 0/3w | H44: 2/54b | I44: 1/26w | J44: 1/25b | K44: 1/43b | L44: 1/19w | M44: 0/20b | N44: 1/45w | O44: 1/44w | P44: 8
A45: 40 | B45: 10174 | C45: mf | D45: Piotr Paluch | E45: pl | F45: 2080 | G45: 1/26w | H45: 1/27b | I45: 2/55b | J45: 1/31w | K45: 1/21w | L45: 0/9b | M45: 0/19b | N45: 1/36w | O45: 1/42w | P45: 8
A46: 41 | B46: 20942 | D46: Aleksei Bolshakov | E46: ru | F46: 1957 | G46: 1/28b | H46: 0/20b | I46: 2/49w | J46: 0/21b | K46: 1/33b | L46: 2/36w | M46: 0/38w | N46: 2/44b | O46: 0/19w | P46: 8
A47: 42 | B47: 19031 | D47: Oleksandr Zhygalin | E47: ua | F47: 2033 | G47: 1/20w | H47: 1/24w | I47: 0/18b | J47: 2/46b | K47: 0/11w | L47: 1/48b | M47: 0/44w | N47: 2/56w | O47: 1/40b | P47: 8
A48: 43 | B48: 10450 | C48: mi | D48: Oscar Lognon | E48: fr | F48: 2280 | G48: 2/51b | H48: 0/2w | I48: 1/44b | J48: 1/23b | K48: 1/39w | L48: 0/28w | M48: 1/48b | N48: 1/47b | O48: 1/45w | P48: 8
A49: 44 | B49: 18808 | C49: cmf | D49: Tamerlan Akhmerov | E49: ru | F49: 2082 | G49: 0/4b | H49: 2/52w | I49: 1/43w | J49: 0/27b | K49: 1/45b | L49: 1/35w | M49: 2/42b | N49: 0/41w | O49: 1/39b | P49: 8
A50: 45 | B50: 10078 | C50: mf | D50: Patrick Casaril | E50: be | F50: 2135 | G50: 0/19b | H50: 1/49w | I50: 1/38w | J50: 1/34b | K50: 1/44w | L50: 1/47w | M50: 1/33b | N50: 1/39b | O50: 1/43b | P50: 8
A51: 46 | B51: 10057 | D51: Vaclav Marek | E51: cz | F51: 1941 | G51: 0/17b | H51: 1/32b | I51: 1/34b | J51: 0/42w | K51: 1/53w | L51: 2/52b | M51: 1/47w | N51: 0/30b | O51: 2/56w | P51: 8
A52: 47 | B52: 10859 | C52: mf | D52: Anatoli Tatarenko | E52: ru | F52: 2179 | G52: 1/11w | H52: 0/7w | I52: 1/48b | J52: 1/24w | K52: 1/35w | L52: 1/45b | M52: 1/46b | N52: 1/43w | O52: 0/36b | P52: 7
A53: 48 | B53: 19422 | D53: Dmitry Valikov | E53: ru | F53: 1977 | G53: 0/5w | H53: 1/25b | I53: 1/47w | J53: 2/54w | K53: 0/37b | L53: 1/42w | M53: 1/43w | N53: 1/34b | O53: 0/32b | P53: 7
A54: 49 | B54: 15454 | D54: Vasiliy Markin | E54: ru | F54: 1923 | G54: 0/12w | H54: 1/45b | I54: 0/41b | J54: 1/50w | K54: 2/55b | L54: 1/34w | M54: 2/53b | N54: 0/23w | O54: 0/33b | P54: 7
A55: 50 | B55: 20465 | D55: Arslan Akhmetzyanov | E55: ru | F55: 1999 | G55: 0/18b | H55: 0/15b | I55: 0/51w | J55: 1/49b | K55: 2/56w | L55: 1/53w | M55: 2/54w | N55: 1/52b | O55: 0/34w | P55: 7
A56: 51 | B56: 21702 | D56: Anton Kucherenko | E56: ru | G56: 0/43w | H56: 0/29b | I56: 2/50b | J56: 0/36w | K56: 1/52b | L56: 2/56w | M56: 0/22w | N56: 0/54b | O56: 2/55w | P56: 7
A57: 52 | D57: Viacheslav Vasiliev | E57: ru | G57: 2/56w | H57: 0/44b | I57: 0/15w | J57: 0/38b | K57: 1/51w | L57: 0/46w | M57: 2/55b | N57: 1/50w | O57: 1/53w | P57: 7
A58: 53 | B58: 10090 | D58: Jaroslav Novotny | E58: cz | F58: 1927 | G58: 0/6w | H58: 0/35b | I58: 0/25w | J58: 2/56w | K58: 1/46b | L58: 1/50b | M58: 0/49w | N58: 1/55w | O58: 1/52b | P58: 6
A59: 54 | B59: 20636 | D59: Denis Karataev | E59: ru | F59: 1928 | G59: 0/21w | H59: 0/39w | I59: 2/56w | J59: 0/48b | K59: 0/22b | L59: 2/55w | M59: 0/50b | N59: 2/51w | O59: 0/35b | P59: 6
A60: 55 | B60: 21686 | D60: Tikhon Matiashov | E60: ru | G60: 0/31b | H60: 2/56w | I60: 0/40w | J60: 0/30b | K60: 0/49w | L60: 0/54b | M60: 0/52w | N60: 1/53b | O60: 0/51b | P60: 3
A61: 56 | D61: Dummy | G61: 0/52b | H61: 0/55b | I61: 0/54b | J61: 0/53b | K61: 0/50b | L61: 0/51b | M61: 0/36b | N61: 0/42b | O61: 0/46b | P61: 0
B63: Gamefile Sevilla format
B64: =B4 -> FMJD-id | C64: =C4 -> Title | D64: Name | E64: Cn | F64: FMJD-
F65: rating | G65: R1 | H65: R2 | I65: R3 | J65: R4 | K65: R5 | L65: R6 | M65: R7 | N65: R8 | O65: R9 | P65: Pt
B66: =B6 -> 17207 | C66: 0 | D66: Michael Semyaniuk | E66: =E6 -> by | F66: 2148 | G66: =MID(G6,3,4)&MID(G6,1,1) -> 15w2 | H66: =MID(H6,3,4)&MID(H6,1,1) -> 18w2 | I66: 2b1 | J66: 3b1 | K66: 5w2 | L66: 4w1 | M66: 13b2 | N66: 6b1 | O66: 7w1 | P66: 13

Sheet AnalyseRD-Nonrec
A1: Schaak | B1: dammen | C1: schaken
A2: ½ | B2: 1 | C2: ½
A3: 1 | B3: 2 | C3: 1
C7: =SUM(IF(FREQUENCY(C9:C65536,C9:C65536)>0,1)) -> 0 | D7: =SUM(IF(FREQUENCY(D9:D65536,D9:D65536)>0,1)) -> 0 | E7: =SUM(IF(FREQUENCY(E9:E65536,E9:E65536)>0,1)) -> 0 | F7: Rondedossier
A8: Rk | B8: Player | C8: WCC | D8: SCC | E8: Level | F8: 1.Rd | G8: 2.Rd | H8: 3.Rd | I8: 4.Rd | J8: 5.Rd | K8: 6.Rd | L8: 7.Rd | M8: 8.Rd
F9: 52w1 | G9: 11z1 | H9: 16w1 | I9: 8z1 | J9: 2w½ | K9: 7z1 | L9: 30w1 | M9: 9w1
F10: 25w1 | G10: aclad | H10: 14z1 | I10: 4w1 | J10: 1z½ | K10: 20w1 | L10: 3z½ | M10: 7w0
F11: 29w1 | G11: 14z½ | H11: 18w1 | I11: 10z1 | J11: aclub | K11: afwmm | L11: 2w½ | M11: 30z½
F12: 47z1 | G12: aclad | H12: 33w1 | I12: 2z0 | J12: aclub | K12: 5z1 | L12: afwmm | M12: afwmm
F13: 13z1 | G13: 30w1 | H13: 37z½ | I13: 7w0 | J13: 22z1 | K13: 4w0 | L13: 10z0 | M13: 18w1
F14: 8w0 | G14: 54z1 | H14: 48w1 | I14: 21z1 | J14: 12w1 | K14: 30w0 | L14: 27z½ | M14: 23z1
F15: 18z½ | G15: 9w1 | H15: 17w1 | I15: 5z1 | J15: afwmm | K15: 1w0 | L15: 32z1 | M15: 2z1
F16: 6z1 | G16: 12w½ | H16: 31z1 | I16: 1w0 | J16: 37z0 | K16: 27z0 | L16: afwmm | M16: 54w1
F17: bye | G17: 7z0 | H17: 61z1 | I17: 28w1 | J17: 11z1 | K17: 37w1 | L17: 34w1 | M17: 1z0
F18: 36z½ | G18: 46w1 | H18: 43z1 | I18: 3w0 | J18: aclub | K18: 23z½ | L18: 5w1 | M18: 20z1
F19: 23w1 | G19: 1w0 | H19: 28z½ | I19: 18z1 | J19: 9w0 | K19: 26w1 | L19: 38z1 | M19: afwmm
F20: 32w1 | G20: 8z½ | H20: 72w1 | I20: afwmm | J20: 6z0 | K20: 53w½ | L20: 21w½ | M20: 36z1
F21: 5w0 | G21: afwmm | H21: 65z1 | I21: afwmm | J21: aclad | K21: afwmm | L21: 56z1 | M21: 24w1
F22: 68z1 | G22: 3w½ | H22: 2w0 | I22: 43z1 | J22: aclub | K22: 32w½ | L22: afwmm | M22: 72z1
F23: 17z0 | G23: 43w½ | H23: 46z0 | I23: 26z0 | J23: 61w1 | K23: aclub | L23: 42z1 | M23: 40w½
F24: 42w1 | G24: 25z1 | H24: 1z0 | I24: 24w½ | J24: 34w0 | K24: aclub | L24: afwmm | M24: 71z½
F25: 15w1 | G25: aclad | H25: 7z0 | I25: afwmm | J25: aclub | K25: afwmm | L25: 73w1 | M25: afwmm
F26: 7w½ | G26: 74z1 | H26: 3z0 | I26: 11w0 | J26: afwmm | K26: 40w1 | L26: 62z1 | M26: 5z0
F27: 46z½ | G27: 21w0 | H27: 36z0 | I27: 66w1 | J27: 45z1 | K27: aclub | L27: 29w0 | M27: 25z1
F28: afwmm | G28: afwmm | H28: afwmm | I28: 39z1 | J28: 71w1 | K28: 2z0 | L28: 37w1 | M28: 10w0
F29: 74w½ | G29: 19z1 | H29: afwmm | I29: 6w0 | J29: 51z1 | K29: 31w1 | L29: 12z½ | M29: afwmm
F30: afwzm | G30: 55z1 | H30: 66z1 | I30: 38w1 | J30: 5w0 | K30: 29z½ | L30: 36w0 | M30: 52z0
F31: 11z0 | G31: 39w1 | H31: 73z1 | I31: afwmm | J31: 27w½ | K31: 10w½ | L31: 71z1 | M31: 6w0
F32: 73z0 | G32: 70w1 | H32: 44z1 | I32: 16z½ | J32: 47w½ | K32: aclub | L32: afwmm | M32: 13z0
F33: 2z0 | G33: 16w0 | H33: 70z1 | I33: 29w0 | J33: aclub | K33: 66z1 | L33: 46w½ | M33: 19w0
F34: gnlid | G34: gnlid | H34: 34z0 | I34: 15w1 | J34: 43w1 | K34: 11z0 | L34: afwmm | M34: 31z1
F35: 30z0 | G35: 73w1 | H35: 41z1 | I35: afwmm | J35: 23z½ | K35: 8w1 | L35: 6w½ | M35: 35z0
F36: 69z1 | G36: 67w0 | H36: 11w½ | I36: 9z0 | J36: afwmm | K36: 41z1 | L36: 47w0 | M36: 46z0
F37: 3z0 | G37: 71w0 | H37: 69z1 | I37: 25z1 | J37: 40w1 | K37: 22w½ | L37: 19z1 | M37: 32w1
F38: 27w1 | G38: 5z0 | H38: 51w1 | I38: 35w1 | J38: aclub | K38: 6z1 | L38: 1z0 | M38: 3w½
F39: 59z1 | G39: 68w½ | H39: 8w0 | I39: 33z1 | J39: afwmm | K39: 21z0 | L39: afwmm | M39: 26w0
F40: 12z0 | G40: 34w1 | H40: 56z1 | I40: 47w1 | J40: afwmm | K40: 14z½ | L40: 7w0 | M40: 29z0
F41: 55w1 | G41: 44z½ | H41: 4z0 | I41: 31w0 | J41: 58z1 | K41: afwmm | L41: afwmm | M41: 51w1
F42: afwmm | G42: 32z0 | H42: 26w1 | I42: 46w1 | J42: 16z1 | K42: aclub | L42: 9z0 | M42: afwmm
F43: afwmm | G43: afwmm | H43: 49w1 | I43: 30z0 | J43: aclub | K43: 47z1 | L43: afwmm | M43: 27w1
F44: 10w½ | G44: 72z0 | H44: 19w1 | I44: afwmm | J44: 62z½ | K44: 57w1 | L44: 22z1 | M44: 12w0
F45: 41w1 | G45: 52z1 | H45: 5w½ | I45: 71z½ | J45: 8w1 | K45: 9z0 | L45: 20z0 | M45: aclad
F46: afwmm | G46: bye | H46: afwmm | I46: 22z0 | J46: 55w1 | K46: 39z1 | L46: 11w0 | M46: 47z0
F47: 60w1 | G47: 23z0 | H47: afwmm | I47: 20w0 | J47: 44z1 | K47: 38w0 | L47: 40z0 | M47: 50z½
F48: 54w0 | G48: 58z0 | H48: 59w1 | I48: 41w1 | J48: 29z0 | K48: 18z0 | L48: 39w1 | M48: 15z½
F49: 37z0 | G49: 69w1 | H49: 27w0 | I49: 40z0 | J49: 42z1 | K49: 28w0 | L49: 51w0 | M49: 57z½
F50: 16z0 | G50: 60w1 | H50: 47z0 | I50: 48z0 | J50: 41w0 | K50: 69z1 | L50: 15w0 | M50: 58w1
F51: 58w1 | G51: 15z½ | H51: 10w0 | I51: 14w0 | J51: 26z0 | K51: 45w1 | L51: 52z0 | M51: 62w1
F52: 75z½ | G52: 33w½ | H52: 24w0 | I52: 73z0 | J52: 39w0 | K52: 55z½ | L52: 58w1 | M52: aclad
F53: 63w½ | G53: 51z0 | H53: 68z0 | I53: 65w1 | J53: 19w0 | K53: 43z0 | L53: 55w1 | M53: afwmm
F54: 19w½ | G54: 10z0 | H54: 15w1 | I54: 34z0 | J54: afwmm | K54: aclub | L54: 25z½ | M54: 28w1
F55: 4w0 | G55: 56z1 | H55: 42w1 | I55: 32z0 | J55: 24z½ | K55: 35w0 | L55: 28z1 | M55: 38w1
F56: 67z0 | G56: 50w1 | H56: 6z0 | I56: 42w1 | J56: 53z0 | K56: afwmm | L56: afwmm | M56: afwmm
F57: afwmm | G57: afwmm | H57: 35z0 | I57: afwmm | J57: 69w1 | K57: afwmm | L57: afwmm | M57: 73w1
F58: 56w0 | G58: 48z0 | H58: afwmm | I58: 60z1 | J58: afwmm | K58: 52w0 | L58: 66z1 | M58: 39w½
F59: afwmm | G59: 45w1 | H59: 30z0 | I59: afwmm | J59: 21w0 | K59: aclub | L59: 41z1 | M59: 33z0
F60: 1z0 | G60: 37w0 | H60: 55z1 | I60: afwmm | J60: afwmm | K60: 50z1 | L60: 43w1 | M60: 22w1
F61: afwmm | G61: afwmm | H61: afwmm | I61: afwmm | J61: 48w1 | K61: 12z½ | L61: afwmm | M61: afwmm
F62: 40z1 | G62: 6w0 | H62: afwmm | I62: afwmm | J62: 57z½ | K62: aclub | L62: afwmm | M62: 8z0
F63: 33z0 | G63: 22w0 | H63: 52w0 | I63: 59z1 | J63: 38z0 | K63: 44w½ | L63: 45z0 | M63: 60w1
F64: 50z1 | G64: 47w0 | H64: 32w0 | I64: afwmm | J64: afwmm | K64: 58z1 | L64: 13w0 | M64: aclad
F65: afwmm | G65: afwmm | H65: afwmm | I65: afwmm | J65: 54w½ | K65: 36z0 | L65: bye | M65: 41w½
F66: 43z0 | G66: 40w1 | H66: 62w½ | I66: 68z0 | J66: 33w0 | K66: 56w0 | L66: 44z0 | M66: 42z0
F67: 31w0 | G67: afwmm | H67: 40z0 | I67: 55w0 | J67: afwmm | K67: 65w1 | L67: 69z1 | M67: afwmm
F68: 39z0 | G68: 42z0 | H68: afwmm | I68: 50w0 | J68: 70w½ | K68: bye | L68: 61z½ | M68: 55z0
F69: afwmm | G69: 62z½ | H69: 9w0 | I69: 74z0 | J69: 15z0 | K69: afwmm | L69: 60w½ | M69: 66w½
F70: afwmm | G70: 61w½ | H70: 58z½ | I70: afwmm | J70: 36w½ | K70: afwmm | L70: 18w0 | M70: 43z0
F71: 45z½ | G71: afwmm | H71: afwmm | I71: afwmm | J71: afwmm | K71: afwmm | L71: afwmm | M71: afwmm
F72: afwmm | G72: gnlid | H72: gnlid | I72: gnlid | J72: gnlid | K72: gnlid | L72: gnlid | M72: gnlid
F73: afwmm | G73: afwmm | H73: 13w0 | I73: 45z0 | J73: 66w0 | K73: 59z0 | L73: afwmm | M73: 69w1
F74: gnlid | G74: gnlid | H74: 22w0 | I74: 19z0 | J74: 65z1 | K74: 25w0 | L74: 50w0 | M74: 61z½
F75: 48w1 | G75: 28z1 | H75: 71w½ | I75: afwmm | J75: afwmm | K75: afwmm | L75: gnlid | M75: gnlid
F76: 14w0 | G76: 31z½ | H76: 45w1 | I76: 58w1 | J76: afwmm | K76: afwmm | L76: afwmm | M76: afwmm
F77: 28w0 | G77: 41z0 | H77: 29w0 | I77: 70z1 | J77: 49z0 | K77: 42w0 | L77: 59w0 | M77: 65z0
F78: 71z0 | G78: 24z0 | H78: 25w0 | I78: 69w0 | J78: 60z½ | K78: afwmm | L78: afwmm | M78: afwmm
F79: 70w1 | G79: 29z1 | H79: 67z½ | I79: 37w½ | J79: 20z0 | K79: afwmm | L79: 23w0 | M79: 16w½
F80: afwmm | G80: 36w1 | H80: 12z0 | I80: afwmm | J80: 73w1 | K80: afwmm | L80: afwmm | M80: 14w0
F81: 24w1 | G81: 27z0 | H81: 23w0 | I81: 44w1 | J81: 72z0 | K81: 74w1 | L81: 17z0 | M81: 49z0
F82: 21z½ | G82: 18w0 | H82: afwmm | I82: 61w1 | J82: afwmm | K82: 73z0 | L82: gnlid | M82: gnlid
F83: 44w½ | G83: gnlid | H83: gnlid | I83: gnlid | J83: gnlid | K83: gnlid | L83: gnlid | M83: gnlid
F84: afwmm | G84: afwmm | H84: afwmm | I84: afwmm | J84: afwmm | K84: afwmm | L84: afwmm

Sheet Expectationfunctions
D2: Range | E2: 800 | F2: 800 | G2: =G4/G5 -> 694.871171 | H2: =H4/H5 -> 708.9747412 | I2: 800 | J2: 800 | K2: 800
D3: Sigma | E3: * | F3: =F4*1 -> 400 | G3: =G4*SQRT(1/3)*PI() -> 315.0892221 | H3: =H4 -> 282.84 | I3: * | J3: 200 | K3: *
D4: xScale | E4: =E2*E5 -> 254.6479089 | F4: =F2*F5 -> 400 | G4: =400/LN(10) -> 173.7177928 | H4: =ROUND(200*SQRT(2),2) -> 282.84 | I4: =I2*I5 -> 800 | J4: =J2*J5 -> 200 | K4: =K2*K5 -> 800 | N4: 200
D5: SlopeN | E5: =1/(PI()*(1+0*0)^2) -> 0.3183098862 | F5: =(1/2)*2/(EXP(0)+EXP(0)) -> 0.5 | G5: =G13*(1-G13) -> 0.25 | H5: =1/SQRT(2*PI()) -> 0.3989422804 | I5: 1 | J5: 0.25 | K5: 1 | N5: 0.25 | O5: LOG(CG model precision)
D6: Rating | E6: Lorenz | F6: SecH | G6: Logistic | H6: Gauss | I6: TanH | J6: ="AVG"&J2/2 -> AVG400 | K6: Sinh | N6: n\r | O6: 9 | P6: 11 | Q6: 14 | R6: 22 | S6: 33
D7: -600 | E7: =1/PI()*ATAN(D7/$E$4)+0.5 -> 0.1277611537 | F7: =(2 / PI()) * ATAN(EXP(PI() * 0.5 * D7 / F$4)) -> 0.060159252 | G7: =1/(1+EXP(-$D7/G$4)) -> 0.03065343003 | H7: =NORMDIST($D7/H$4,0,1,TRUE) -> 0.01694657136 | I7: =TANH(D7/$I$4)+0.5 -> -0.1351489524 | J7: =($D7/J$2)+0.5 -> -0.25 | K7: =SINH(D7/$K$4)+0.5 -> -0.3223167319 | N7: 7 | O7: =LOG($N$5*SQRT(O$6)/(2*LN($N7)*SQRT(2)*$N$4)) -> -3.166636509 | P7: -3.123061421 | Q7: -3.070693746 | R7: -2.972546423 | S7: -2.884500794
D8: =D7+100 -> -500 | E8: 0.1499419658 | F8: 0.08878031494 | G8: 0.0532402152 | H8: 0.03854851822 | I8: -0.05459972235 | J8: -0.125 | K8: -0.1664922645 | N8: 11 | O8: -3.257343937 | P8: -3.213768849 | Q8: -3.161401174 | R8: -3.063253852 | S8: -2.975208222
D9: =D8+100 -> -400 | E9: 0.1804535366 | F9: 0.1304818864 | G9: 0.09090909091 | H9: 0.07864761308 | I9: 0.03788284274 | J9: 0 | K9: -0.02109530549 | N9: 18 | O9: -3.338467431 | P9: -3.294892343 | Q9: -3.242524668 | R9: -3.144377345 | S9: -3.056331716
D10: -300 | E10: 0.2240304172 | F10: 0.1901301499 | G10: 0.1509795572 | H10: 0.144419871 | I10: 0.1416426016 | J10: 0.125 | K10: 0.1161489321 | N10: 76 | O10: -3.514075169 | P10: -3.470500081 | Q10: -3.418132406 | R10: -3.319985083 | S10: -3.231939454
D11: -200 | E11: 0.2880776334 | F11: 0.2723338996 | G11: 0.2402530734 | H11: 0.2397479542 | I11: 0.2550813376 | J11: 0.25 | K11: 0.2473876832 | N11: 400 | O11: -3.65504672 | P11: -3.611471632 | Q11: -3.559103956 | R11: -3.460956634 | S11: -3.372911004
D12: -100 | E12: 0.3808894972 | F12: 0.3780941915 | G12: 0.3599350002 | H12: 0.3618355342 | I12: 0.3756469982 | J12: 0.375 | K12: =SINH(D12/$K$4)+0.5 -> 0.3746742248 | N12: 1000 | O12: -3.716850669 | P12: -3.673275581 | Q12: -3.620907906 | R12: -3.522760583 | S12: -3.434714954
D13: 0 | E13: 0.5 | F13: 0.5 | G13: 0.5 | H13: 0.5 | I13: 0.5 | J13: 0.5 | K13: =SINH(D13/$K$4)+0.5 -> 0.5
D14: 100 | E14: 0.6191105028 | F14: 0.6219058085 | G14: 0.6400649998 | H14: 0.6381644658 | I14: 0.6243530018 | J14: 0.625 | K14: =SINH(D14/$K$4)+0.5 -> 0.6253257752
D15: 200 | E15: 0.7119223666 | F15: 0.7276661004 | G15: 0.7597469266 | H15: 0.7602520458 | I15: 0.7449186624 | J15: 0.75 | K15: =SINH(D15/$K$4)+0.5 -> 0.7526123168
D16: 300 | E16: 0.7759695828 | F16: 0.8098698501 | G16: 0.8490204428 | H16: 0.855580129 | I16: 0.8583573984 | J16: 0.875 | K16: 0.8838510679
D17: 400 | E17: 0.8195464634 | F17: 0.8695181136 | G17: 0.9090909091 | H17: 0.9213523869 | I17: 0.9621171573 | J17: 1 | K17: 1.021095305
D18: 500 | E18: 0.8500580342 | F18: 0.9112196851 | G18: 0.9467597848 | H18: 0.9614514818 | I18: 1.054599722 | J18: 1.125 | K18: 1.166492264
D19: 600 | E19: 0.8722388463 | F19: 0.939840748 | G19: 0.96934657 | H19: 0.9830534286 | I19: 1.135148952 | J19: 1.25 | K19: 1.322316732
